[Event "White Rook U14 Final 2019"]
[Site "Sochi"]
[Date "2019.06.08"]
[Round "7.5"]
[White "Sargsyan, Gor K."]
[Black "Putrenko, Kirill"]
[Result "0-1"]
[ECO "B80"]
[WhiteElo "1641"]
[BlackElo "2010"]
[Annotator "NA"]
[PlyCount "60"]
[EventDate "2019.06.02"]
[EventCountry "RUS"]
[SourceTitle "playchess.com"]
[Source "ChessBase"]
[SourceQuality "1"]
[TimeControl "5400+30"]

1. e4 {[%emt 0:00:00]} c5 {[%emt 0:00:00]} 2. Nf3 {[%emt 0:00:00]} d6 {[%emt 0:00:00]} 3. d4 {[%emt 0:00:00]} cxd4 {[%emt 0:00:00]} 4. Nxd4 {[%emt 0:00:00]} Nf6 {[%emt 0:00:00]} 5. Nc3 {[%emt 0:00:00]} a6 {[%emt 0:00:00]} 6. f3 {[%emt 0:01:50]} e6 {[%emt 0:02:41]} 7. Be3 {[%emt 0:00:05]} b5 {[%emt 0:00:09]} 8. Qd2 {[%emt 0:00:08]} Nbd7 {[%emt 0:00:13]} 9. g4 {[%emt 0:00:49]} Nb6 {[%emt 0:00:10]} 10. h4 {[%emt 0:00:47]} Bb7 {[%emt 0:01:12]} 11. Nb3 {[%emt 0:01:10]} b4 {[%emt 0:07:30]} 12. Nd1 {[%emt 0:01:34]} d5 {[%emt 0:00:29]} 13. Nf2 {[%emt 0:08:01]} Nfd7 {[%emt 0:01:18]} 14. O-O-O {[%emt 0:04:48]} Qc7 {[%emt 0:01:47]} 15. Na5 {[%emt 0:07:45]} Rc8 {[%emt 0:05:05]} 16. Nxb7 {[%emt 0:07:23]} Qxb7 {[%emt 0:00:39]} 17. exd5 {[%emt 0:00:44]} Nxd5 {[%emt 0:00:49]} 18. Bd4 {[%emt 0:00:07]} Nc3 {[%emt 0:06:55]} 19. Ne4 {[%emt 0:03:01]} Nxd1 {[%emt 0:12:16]} 20. Bxg7 {[%emt 0:00:52]} Nc3 {[%emt 0:10:54]} 21. Bxh8 {[%emt 0:03:21]} Nxe4 {[%emt 0:01:58]} 22. fxe4 {[%emt 0:00:07]} Nc5 {[%emt 0:11:30]} 23. Kb1 {[%emt 0:14:07]} Nxe4 {[%emt 0:01:10]} 24. Qh2 {[%emt 0:02:54]} Bd6 {[%emt 0:02:37]} 25. Qg2 {[%emt 0:00:46]} Qd5 {[%emt 0:00:00]} 26. b3 {[%emt 0:04:59]} e5 {[%emt 0:01:27]} 27. Rg1 {[%emt 0:02:01]} Qd1+ {[%emt 0:00:30]} 28. Kb2 {[%emt 0:00:29]} Qd4+ {[%emt 0:00:10]} 29. Kb1 {[%emt 0:01:19]} Nc3+ {[%emt 0:00:15]} 30. Kb2 {[%emt 0:00:00]} Ne2+ {[%emt 0:00:19]} 0-1

[Event "White Rook U14 Final 2019"]
[Site "Sochi"]
[Date "2019.06.08"]
[Round "7.6"]
[White "Ismagilov, Igor"]
[Black "Grigoryan, Hayk V."]
[Result "1-0"]
[ECO "A45"]
[WhiteElo "1803"]
[BlackElo "1423"]
[Annotator "NA"]
[PlyCount "127"]
[EventDate "2019.06.02"]
[EventCountry "RUS"]
[SourceTitle "playchess.com"]
[Source "ChessBase"]
[SourceQuality "1"]
[TimeControl "5400+30"]

1. d4 {[%emt 0:00:00]} Nf6 {[%emt 0:00:00]} 2. Bf4 {[%emt 0:00:00]} g6 {[%emt 0:00:00]} 3. c3 {[%emt 0:00:00]} Bg7 {[%emt 0:00:00]} 4. Nd2 {[%emt 0:00:00]} d5 {[%emt 0:01:27]} 5. e3 {[%emt 0:00:08]} O-O {[%emt 0:01:40]} 6. Be2 {[%emt 0:01:52]} Nbd7 {[%emt 0:00:38]} 7. h3 {[%emt 0:00:20]} c5 {[%emt 0:00:37]} 8. Ngf3 {[%emt 0:01:05]} cxd4 {[%emt 0:01:45]} 9. exd4 {[%emt 0:02:38]} Re8 {[%emt 0:01:07]} 10. O-O {[%emt 0:06:30]} Ne4 {[%emt 0:04:42]} 11. Nxe4 {[%emt 0:14:42]} dxe4 {[%emt 0:00:06]} 12. Ne5 {[%emt 0:09:29]} Nxe5 {[%emt 0:04:57]} 13. dxe5 {[%emt 0:00:02]} Qb6 {[%emt 0:12:53]} 14. Qb3 {[%emt 0:08:10]} Qc7 {[%emt 0:05:27]} 15. Qc4 {[%emt 0:14:45]} Qxc4 {[%emt 0:02:48]} 16. Bxc4 {[%emt 0:00:02]} Bd7 {[%emt 0:01:18]} 17. e6 {[%emt 0:03:24]} Bxe6 {[%emt 0:01:12]} 18. Bxe6 {[%emt 0:00:00]} fxe6 {[%emt 0:00:01]} 19. Rfe1 {[%emt 0:02:17]} Rac8 {[%emt 0:00:16]} 20. Rxe4 {[%emt 0:00:50]} Rc6 {[%emt 0:00:01]} 21. Rd1 {[%emt 0:04:08]} Rb6 {[%emt 0:01:33]} 22. Re2 {[%emt 0:04:00]} e5 {[%emt 0:06:36]} 23. Bg3 {[%emt 0:02:58]} Rd6 {[%emt 0:01:35]} 24. Rde1 {[%emt 0:00:55]} Red8 {[%emt 0:04:59]} 25. Bxe5 {[%emt 0:00:46]} Bxe5 {[%emt 0:00:00]} 26. Rxe5 {[%emt 0:00:05]} e6 {[%emt 0:00:26]} 27. b3 {[%emt 0:04:55]} Kf7 {[%emt 0:01:01]} 28. c4 {[%emt 0:00:35]} Ra6 {[%emt 0:07:25]} 29. R5e2 {[%emt 0:02:26]} Rd3 {[%emt 0:01:19]} 30. f3 {[%emt 0:02:11]} Rad6 {[%emt 0:00:23]} 31. Kf2 {[%emt 0:01:49]} a5 {[%emt 0:01:21]} 32. Re3 {[%emt 0:00:18]} Rd2+ {[%emt 0:00:30]} 33. R1e2 {[%emt 0:03:26]} Rd1 {[%emt 0:03:58]} 34. Re5 {[%emt 0:00:16]} a4 {[%emt 0:00:15]} 35. bxa4 {[%emt 0:01:15]} Rc1 {[%emt 0:06:52]} 36. Rb5 {[%emt 0:00:35]} b6 {[%emt 0:00:09]} 37. a5 {[%emt 0:01:17]} bxa5 {[%emt 0:01:12]} 38. Rxa5 {[%emt 0:03:10]} Rxc4 {[%emt 0:00:43]} 39. Ra7+ {[%emt 0:00:09]} Kf6 {[%emt 0:00:05]} 40. Rxh7 {[%emt 0:00:01]} Ra4 {[%emt 0:00:09]} 41. Rb7 {[%emt 0:00:12]} Rda6 {[%emt 0:00:02]} 42. Rbb2 {[%emt 0:00:39]} Ra3 {[%emt 0:00:05]} 43. g4 {[%emt 0:00:13]} g5 {[%emt 0:01:35]} 44. Kg3 {[%emt 0:01:17]} Kg6 {[%emt 0:01:23]} 45. Rf2 {[%emt 0:01:07]} Kf6 {[%emt 0:00:24]} 46. h4 {[%emt 0:01:15]} gxh4+ {[%emt 0:00:31]} 47. Kxh4 {[%emt 0:00:00]} Kg6 {[%emt 0:00:09]} 48. Kg3 {[%emt 0:00:24]} Kg5 {[%emt 0:00:07]} 49. Rfd2 {[%emt 0:00:18]} Kg6 {[%emt 0:00:15]} 50. Re2 {[%emt 0:01:59]} Kg5 {[%emt 0:01:27]} 51. Re5+ {[%emt 0:01:41]} Kf6 {[%emt 0:00:15]} 52. Rbe2 {[%emt 0:00:36]} Kf7 {[%emt 0:00:25]} 53. g5 {[%emt 0:00:51]} Kg6 {[%emt 0:00:30]} 54. Kg4 {[%emt 0:00:13]} Kf7 {[%emt 0:03:41]} 55. f4 {[%emt 0:01:40]} Rc3 {[%emt 0:02:40]} 56. Rb2 {[%emt 0:00:46]} Rc7 {[%emt 0:01:03]} 57. Reb5 {[%emt 0:00:41]} Kg6 {[%emt 0:00:32]} 58. Rb6 {[%emt 0:01:29]} Rc6 {[%emt 0:01:19]} 59. Rxc6 {[%emt 0:00:36]} Rxc6 {[%emt 0:01:52]} 60. a4 {[%emt 0:00:27]} Ra6 {[%emt 0:00:01]} 61. Rb4 {[%emt 0:00:19]} Ra5 {[%emt 0:00:05]} 62. Re4 {[%emt 0:00:50]} Kf7 {[%emt 0:00:20]} 63. Kh5 {[%emt 0:00:45]} Rf5 {[%emt 0:00:43]} 64. Kh6 {[%emt 0:00:29]} 1-0

[Event "White Rook U14 Final 2019"]
[Site "Sochi"]
[Date "2019.06.08"]
[Round "7.7"]
[White "Hovhannisyan, Artyom"]
[Black "Khodko, Yurii N."]
[Result "0-1"]
[ECO "C18"]
[WhiteElo "1458"]
[BlackElo "1727"]
[Annotator "NA"]
[PlyCount "158"]
[EventDate "2019.06.02"]
[EventCountry "RUS"]
[SourceTitle "playchess.com"]
[Source "ChessBase"]
[SourceQuality "1"]
[TimeControl "5400+30"]

1. e4 {[%emt 0:00:00]} e6 {[%emt 0:00:16]} 2. d4 {[%emt 0:01:20]} d5 {[%emt 0:00:08]} 3. Nc3 {[%emt 0:00:00]} Bb4 {[%emt 0:00:08]} 4. e5 {[%emt 0:00:17]} c5 {[%emt 0:00:08]} 5. a3 {[%emt 0:00:08]} Bxc3+ {[%emt 0:00:00]} 6. bxc3 {[%emt 0:00:08]} Ne7 {[%emt 0:00:00]} 7. f4 {[%emt 0:00:16]} b6 {[%emt 0:01:38]} 8. Nf3 {[%emt 0:00:09]} Ba6 {[%emt 0:00:41]} 9. Bd3 {[%emt 0:02:42]} Bxd3 {[%emt 0:01:36]} 10. Qxd3 {[%emt 0:00:08]} h5 {[%emt 0:01:13]} 11. Bd2 {[%emt 0:00:42]} c4 {[%emt 0:01:14]} 12. Qe2 {[%emt 0:00:08]} Nbc6 {[%emt 0:01:06]} 13. Qf2 {[%emt 0:01:15]} Nf5 {[%emt 0:00:32]} 14. g3 {[%emt 0:02:01]} g6 {[%emt 0:02:02]} 15. Bc1 {[%emt 0:08:11]} b5 {[%emt 0:00:57]} 16. Bd2 {[%emt 0:00:07]} a5 {[%emt 0:00:48]} 17. O-O {[%emt 0:00:24]} Rb8 {[%emt 0:01:21]} 18. Rfb1 {[%emt 0:00:08]} Qe7 {[%emt 0:00:56]} 19. Be1 {[%emt 0:00:48]} Kd7 {[%emt 0:00:32]} 20. Qd2 {[%emt 0:03:22]} Rb6 {[%emt 0:00:48]} 21. Ng5 {[%emt 0:01:45]} Rb7 {[%emt 0:00:48]} 22. Qc1 {[%emt 0:03:23]} b4 {[%emt 0:01:53]} 23. axb4 {[%emt 0:00:08]} axb4 {[%emt 0:00:00]} 24. cxb4 {[%emt 0:00:08]} Nfxd4 {[%emt 0:00:32]} 25. Qd1 {[%emt 0:01:12]} Nf5 {[%emt 0:04:58]} 26. c3 {[%emt 0:01:13]} Nxe5 {[%emt 0:00:34]} 27. Qa4+ {[%emt 0:00:33]} Nc6 {[%emt 0:03:07]} 28. b5 {[%emt 0:00:16]} Nd8 {[%emt 0:01:28]} 29. Nf3 {[%emt 0:02:00]} f6 {[%emt 0:00:25]} 30. Bf2 {[%emt 0:00:49]} Ke8 {[%emt 0:01:05]} 31. b6+ {[%emt 0:00:41]} Kf7 {[%emt 0:01:45]} 32. Qb5 {[%emt 0:07:27]} Nd6 {[%emt 0:02:22]} 33. Qa5 {[%emt 0:00:23]} Ne4 {[%emt 0:01:33]} 34. Be3 {[%emt 0:15:25]} Nc6 {[%emt 0:01:03]} 35. Qb5 {[%emt 0:00:23]} Qd7 {[%emt 0:01:36]} 36. Nd4 {[%emt 0:01:30]} Nxd4 {[%emt 0:00:46]} 37. Qxd7+ {[%emt 0:00:07]} Rxd7 {[%emt 0:00:00]} 38. Bxd4 {[%emt 0:00:09]} Nd2 {[%emt 0:01:00]} 39. Rb5 {[%emt 0:01:23]} Nf3+ {[%emt 0:02:18]} 40. Kf2 {[%emt 0:01:08]} Nxd4 {[%emt 0:00:31]} 41. cxd4 {[%emt 0:00:16]} Rb8 {[%emt 0:00:16]} 42. Ke2 {[%emt 0:01:24]} Ke7 {[%emt 0:00:45]} 43. Kd2 {[%emt 0:00:23]} Kd6 {[%emt 0:00:46]} 44. Kc3 {[%emt 0:00:07]} Rdb7 {[%emt 0:00:23]} 45. Rab1 {[%emt 0:00:15]} Ra8 {[%emt 0:00:15]} 46. R1b2 {[%emt 0:01:10]} Ra3+ {[%emt 0:00:53]} 47. Kb4 {[%emt 0:00:00]} Ra1 {[%emt 0:01:17]} 48. Kc3 {[%emt 0:00:15]} Rd1 {[%emt 0:00:18]} 49. Ra2 {[%emt 0:00:04]} Rd3+ {[%emt 0:00:00]} 50. Kb4 {[%emt 0:00:13]} Rxd4 {[%emt 0:00:04]} 51. Ra7 {[%emt 0:00:48]} c3+ {[%emt 0:01:18]} 52. Kxc3 {[%emt 0:00:07]} Rc4+ {[%emt 0:02:23]} 53. Kd3 {[%emt 0:00:13]} Kc6 {[%emt 0:00:00]} 54. Rb2 {[%emt 0:00:13]} Rxa7 {[%emt 0:00:01]} 55. bxa7 {[%emt 0:00:06]} Ra4 {[%emt 0:00:16]} 56. Rb8 {[%emt 0:00:04]} Rxa7 {[%emt 0:00:33]} 57. Rf8 {[%emt 0:00:00]} Ra2 {[%emt 0:00:19]} 58. Rxf6 {[%emt 0:09:07]} Kd7 {[%emt 0:00:06]} 59. Rxg6 {[%emt 0:00:07]} Rxh2 {[%emt 0:00:26]} 60. Rg7+ {[%emt 0:00:00]} Kd6 {[%emt 0:00:06]} 61. Rg6 {[%emt 0:00:26]} Ke7 {[%emt 0:08:36]} 62. Ke3 {[%emt 0:00:06]} Rh3 {[%emt 0:00:06]} 63. Kf2 {[%emt 0:00:13]} h4 {[%emt 0:00:06]} 64. gxh4 {[%emt 0:01:09]} Rxh4 {[%emt 0:00:38]} 65. Ke3 {[%emt 0:01:16]} Rh3+ {[%emt 0:00:06]} 66. Kd4 {[%emt 0:00:49]} Rf3 {[%emt 0:03:53]} 67. Rg4 {[%emt 0:00:05]} Kf6 {[%emt 0:00:12]} 68. Rh4 {[%emt 0:02:25]} Kf5 {[%emt 0:00:06]} 69. Rh5+ {[%emt 0:00:06]} Kxf4 {[%emt 0:00:18]} 70. Rh6 {[%emt 0:00:29]} Kf5 {[%emt 0:00:07]} 71. Rh5+ {[%emt 0:00:34]} Kf6 {[%emt 0:00:05]} 72. Rh6+ {[%emt 0:00:11]} Ke7 {[%emt 0:00:43]} 73. Kc5 {[%emt 0:00:18]} Rc3+ {[%emt 0:00:05]} 74. Kd4 {[%emt 0:00:06]} Rc4+ {[%emt 0:00:11]} 75. Kd3 {[%emt 0:00:16]} Kd6 {[%emt 0:00:05]} 76. Rg6 {[%emt 0:00:05]} Rh4 {[%emt 0:00:06]} 77. Ke3 {[%emt 0:00:11]} d4+ {[%emt 0:00:05]} 78. Kd3 {[%emt 0:00:11]} Kd5 {[%emt 0:00:05]} 79. Rg3 {[%emt 0:00:06]} e5 {[%emt 0:00:05]} 0-1

[Event "White Rook U14 Final 2019"]
[Site "Sochi"]
[Date "2019.06.08"]
[Round "7.8"]
[White "Loviagina, Dariana"]
[Black "Hakobyan, Astghik"]
[Result "0-1"]
[ECO "A49"]
[WhiteElo "1297"]
[BlackElo "1791"]
[Annotator "NA"]
[PlyCount "120"]
[EventDate "2019.06.02"]
[EventCountry "RUS"]
[SourceTitle "playchess.com"]
[Source "ChessBase"]
[SourceQuality "1"]
[TimeControl "5400+30"]

1. Nf3 {[%emt 0:00:00]} Nf6 {[%emt 0:00:00]} 2. b3 {[%emt 0:00:00]} g6 {[%emt 0:00:00]} 3. Bb2 {[%emt 0:00:00]} Bg7 {[%emt 0:00:00]} 4. g3 {[%emt 0:00:00]} d6 {[%emt 0:00:14]} 5. d4 {[%emt 0:00:00]} O-O {[%emt 0:00:12]} 6. Bg2 {[%emt 0:00:06]} Nbd7 {[%emt 0:00:39]} 7. O-O {[%emt 0:00:16]} c5 {[%emt 0:00:32]} 8. e3 {[%emt 0:00:23]} Qc7 {[%emt 0:00:07]} 9. c4 {[%emt 0:00:36]} cxd4 {[%emt 0:02:09]} 10. Nxd4 {[%emt 0:03:34]} a6 {[%emt 0:00:53]} 11. Nd2 {[%emt 0:02:35]} Rb8 {[%emt 0:01:51]} 12. Rc1 {[%emt 0:00:17]} Nc5 {[%emt 0:00:20]} 13. Qc2 {[%emt 0:00:57]} e5 {[%emt 0:03:56]} 14. Ne2 {[%emt 0:00:21]} Bd7 {[%emt 0:04:16]} 15. e4 {[%emt 0:01:45]} b5 {[%emt 0:03:03]} 16. Nc3 {[%emt 0:01:00]} Bh6 {[%emt 0:04:35]} 17. Nd5 {[%emt 0:01:40]} Nxd5 {[%emt 0:00:18]} 18. exd5 {[%emt 0:00:40]} Bf5 {[%emt 0:00:18]} 19. Qd1 {[%emt 0:02:09]} Bd3 {[%emt 0:03:57]} 20. Re1 {[%emt 0:00:23]} bxc4 {[%emt 0:00:00]} 21. Nxc4 {[%emt 0:01:43]} Bxc1 {[%emt 0:00:20]} 22. Qxc1 {[%emt 0:00:07]} Bf5 {[%emt 0:00:13]} 23. Ne3 {[%emt 0:01:19]} Qd7 {[%emt 0:02:24]} 24. Qd2 {[%emt 0:04:57]} Nd3 {[%emt 0:00:40]} 25. Re2 {[%emt 0:02:17]} Nxb2 {[%emt 0:00:39]} 26. Qxb2 {[%emt 0:00:10]} Bh3 {[%emt 0:00:16]} 27. Nc4 {[%emt 0:01:16]} Bxg2 {[%emt 0:00:10]} 28. Kxg2 {[%emt 0:00:06]} Rfc8 {[%emt 0:01:10]} 29. Qd2 {[%emt 0:00:25]} Rc5 {[%emt 0:00:13]} 30. Na5 {[%emt 0:02:11]} Rbb5 {[%emt 0:00:49]} 31. Nc4 {[%emt 0:00:40]} Rxd5 {[%emt 0:00:08]} 32. Qe3 {[%emt 0:00:14]} Qc6 {[%emt 0:00:21]} 33. Qf3 {[%emt 0:07:08]} Rdc5 {[%emt 0:00:34]} 34. Qxc6 {[%emt 0:00:15]} Rxc6 {[%emt 0:00:05]} 35. Rd2 {[%emt 0:00:08]} Rb8 {[%emt 0:02:45]} 36. Rxd6 {[%emt 0:00:46]} Rxd6 {[%emt 0:00:34]} 37. Nxd6 {[%emt 0:00:37]} f5 {[%emt 0:00:00]} 38. Nc4 {[%emt 0:00:00]} e4 {[%emt 0:00:00]} 39. f4 {[%emt 0:00:26]} Kf7 {[%emt 0:00:06]} 40. Kf2 {[%emt 0:00:08]} Ke6 {[%emt 0:00:12]} 41. Ke3 {[%emt 0:00:09]} Rd8 {[%emt 0:00:19]} 42. Ke2 {[%emt 0:00:50]} Kd5 {[%emt 0:00:19]} 43. Ke3 {[%emt 0:00:29]} Kc5 {[%emt 0:00:12]} 44. Ke2 {[%emt 0:02:04]} Kb4 {[%emt 0:00:51]} 45. h3 {[%emt 0:00:25]} Rd3 {[%emt 0:00:00]} 46. Ne3 {[%emt 0:00:25]} Kc3 {[%emt 0:00:24]} 47. g4 {[%emt 0:00:55]} Rd2+ {[%emt 0:00:21]} 48. Ke1 {[%emt 0:00:39]} Kd3 {[%emt 0:00:20]} 49. Nd5 {[%emt 0:00:00]} e3 {[%emt 0:00:38]} 50. Nb4+ {[%emt 0:00:13]} Ke4 {[%emt 0:00:09]} 51. Nxa6 {[%emt 0:00:20]} Rxa2 {[%emt 0:00:16]} 52. Nb4 {[%emt 0:00:19]} Rb2 {[%emt 0:00:15]} 53. gxf5 {[%emt 0:00:56]} Kf3 {[%emt 0:00:19]} 54. Kd1 {[%emt 0:00:00]} e2+ {[%emt 0:00:06]} 55. Ke1 {[%emt 0:00:00]} Rb1+ {[%emt 0:00:06]} 56. Kd2 {[%emt 0:00:32]} e1=Q+ {[%emt 0:00:05]} 57. Kd3 {[%emt 0:00:00]} Qe4+ {[%emt 0:01:04]} 58. Kc3 {[%emt 0:00:16]} Rc1+ {[%emt 0:00:00]} 59. Kb2 {[%emt 0:00:00]} Qb1+ {[%emt 0:00:07]} 60. Ka3 {[%emt 0:00:00]} Rc3 {[%emt 0:00:43]} 0-1

[Event "White Rook U14 Final 2019"]
[Site "Sochi"]
[Date "2019.06.08"]
[Round "7.9"]
[White "Kuzmin, Roman"]
[Black "Mongush, Kezhik"]
[Result "1/2-1/2"]
[ECO "B70"]
[WhiteElo "2119"]
[BlackElo "1824"]
[Annotator "NA"]
[PlyCount "91"]
[EventDate "2019.06.02"]
[EventCountry "RUS"]
[SourceTitle "playchess.com"]
[Source "ChessBase"]
[SourceQuality "1"]
[TimeControl "5400+30"]

1. e4 {[%emt 0:00:00]} c5 {[%emt 0:00:00]} 2. Nf3 {[%emt 0:00:00]} Nc6 {[%emt 0:00:00]} 3. d4 {[%emt 0:00:00]} cxd4 {[%emt 0:00:00]} 4. Nxd4 {[%emt 0:00:00]} g6 {[%emt 0:00:00]} 5. Be2 {[%emt 0:00:00]} Bg7 {[%emt 0:00:00]} 6. Nb3 {[%emt 0:00:00]} Nf6 {[%emt 0:01:24]} 7. Nc3 {[%emt 0:00:00]} O-O {[%emt 0:00:05]} 8. O-O {[%emt 0:00:00]} d6 {[%emt 0:02:14]} 9. Re1 {[%emt 0:00:00]} Be6 {[%emt 0:01:10]} 10. Bf1 {[%emt 0:00:00]} Rc8 {[%emt 0:12:06]} 11. Nd5 {[%emt 0:00:06]} Nd7 {[%emt 0:16:09]} 12. Nf4 {[%emt 0:06:10]} Bxb3 {[%emt 0:00:45]} 13. axb3 {[%emt 0:00:41]} Nc5 {[%emt 0:03:49]} 14. f3 {[%emt 0:02:28]} e6 {[%emt 0:02:38]} 15. c3 {[%emt 0:09:46]} a5 {[%emt 0:06:42]} 16. Be3 {[%emt 0:00:46]} Qc7 {[%emt 0:03:20]} 17. Nd3 {[%emt 0:01:58]} Rfd8 {[%emt 0:03:36]} 18. Nxc5 {[%emt 0:05:15]} dxc5 {[%emt 0:01:02]} 19. Qe2 {[%emt 0:05:26]} b6 {[%emt 0:02:48]} 20. Bg5 {[%emt 0:01:32]} Rd7 {[%emt 0:02:20]} 21. Red1 {[%emt 0:00:32]} Rxd1 {[%emt 0:00:06]} 22. Rxd1 {[%emt 0:00:06]} h6 {[%emt 0:00:06]} 23. Bh4 {[%emt 0:00:26]} Be5 {[%emt 0:00:08]} 24. h3 {[%emt 0:04:47]} g5 {[%emt 0:00:45]} 25. Bf2 {[%emt 0:00:12]} Rd8 {[%emt 0:00:14]} 26. Rxd8+ {[%emt 0:03:44]} Qxd8 {[%emt 0:00:21]} 27. Qb5 {[%emt 0:01:04]} Qc7 {[%emt 0:00:44]} 28. h4 {[%emt 0:01:37]} Kg7 {[%emt 0:00:36]} 29. hxg5 {[%emt 0:03:42]} hxg5 {[%emt 0:00:05]} 30. Be2 {[%emt 0:00:52]} Na7 {[%emt 0:07:44]} 31. Qa6 {[%emt 0:11:40]} Nc8 {[%emt 0:00:28]} 32. Kf1 {[%emt 0:01:37]} Ne7 {[%emt 0:00:30]} 33. Qd3 {[%emt 0:03:25]} Ng6 {[%emt 0:01:21]} 34. Qd2 {[%emt 0:04:20]} Bf4 {[%emt 0:00:34]} 35. Qe1 {[%emt 0:00:00]} Qd8 {[%emt 0:05:13]} 36. g3 {[%emt 0:00:00]} Be5 {[%emt 0:01:13]} 37. Kg2 {[%emt 0:00:46]} Qd7 {[%emt 0:00:15]} 38. Be3 {[%emt 0:00:00]} f6 {[%emt 0:04:55]} 39. Qh1 {[%emt 0:00:38]} Qc6 {[%emt 0:00:39]} 40. Qf1 {[%emt 0:04:48]} Qd6 {[%emt 0:01:14]} 41. Qe1 {[%emt 0:00:09]} Qc6 {[%emt 0:00:00]} 42. Qd2 {[%emt 0:01:31]} Qd6 {[%emt 0:00:48]} 43. Qxd6 {[%emt 0:00:48]} Bxd6 {[%emt 0:00:00]} 44. b4 {[%emt 0:02:23]} axb4 {[%emt 0:00:00]} 45. cxb4 {[%emt 0:02:24]} Ne5 {[%emt 0:00:08]} 46. bxc5 {[%emt 0:00:34]} 1/2-1/2

[Event "White Rook U14 Final 2019"]
[Site "Sochi"]
[Date "2019.06.08"]
[Round "7.10"]
[White "Fomkin, Dmitry"]
[Black "Pingin, Artem"]
[Result "1/2-1/2"]
[ECO "B51"]
[WhiteElo "1733"]
[BlackElo "2108"]
[Annotator "NA"]
[PlyCount "108"]
[EventDate "2019.06.02"]
[EventCountry "RUS"]
[SourceTitle "playchess.com"]
[Source "ChessBase"]
[SourceQuality "1"]
[TimeControl "5400+30"]

1. e4 {[%emt 0:00:00]} c5 {[%emt 0:00:00]} 2. Nf3 {[%emt 0:00:00]} d6 {[%emt 0:00:00]} 3. Bb5+ {[%emt 0:00:00]} Nd7 {[%emt 0:00:00]} 4. d4 {[%emt 0:00:49]} cxd4 {[%emt 0:00:46]} 5. Qxd4 {[%emt 0:00:22]} a6 {[%emt 0:00:51]} 6. Bxd7+ {[%emt 0:00:12]} Bxd7 {[%emt 0:00:05]} 7. c4 {[%emt 0:00:56]} e5 {[%emt 0:00:52]} 8. Qd3 {[%emt 0:00:14]} Be7 {[%emt 0:00:36]} 9. Nc3 {[%emt 0:00:07]} h6 {[%emt 0:01:01]} 10. O-O {[%emt 0:02:28]} Nf6 {[%emt 0:00:24]} 11. h3 {[%emt 0:00:45]} O-O {[%emt 0:00:12]} 12. Be3 {[%emt 0:00:16]} b5 {[%emt 0:02:08]} 13. cxb5 {[%emt 0:00:30]} axb5 {[%emt 0:06:54]} 14. a3 {[%emt 0:03:47]} Qb8 {[%emt 0:00:06]} 15. b4 {[%emt 0:00:37]} Qb7 {[%emt 0:03:37]} 16. Nd2 {[%emt 0:04:12]} Bc6 {[%emt 0:02:38]} 17. f3 {[%emt 0:01:39]} d5 {[%emt 0:01:38]} 18. exd5 {[%emt 0:03:23]} Nxd5 {[%emt 0:09:36]} 19. Nxd5 {[%emt 0:01:45]} Bxd5 {[%emt 0:00:14]} 20. Rfc1 {[%emt 0:04:50]} Rfd8 {[%emt 0:00:00]} 21. Qe2 {[%emt 0:00:33]} f5 {[%emt 0:02:39]} 22. Bc5 {[%emt 0:04:12]} Bf6 {[%emt 0:06:06]} 23. a4 {[%emt 0:02:19]} e4 {[%emt 0:00:17]} 24. fxe4 {[%emt 0:09:42]} fxe4 {[%emt 0:07:06]} 25. a5 {[%emt 0:02:38]} Bxa1 {[%emt 0:04:12]} 26. Rxa1 {[%emt 0:01:56]} Re8 {[%emt 0:03:08]} 27. Qe3 {[%emt 0:00:26]} Qc6 {[%emt 0:09:24]} 28. Ra3 {[%emt 0:02:00]} Bf7 {[%emt 0:02:01]} 29. Rc3 {[%emt 0:04:06]} Qd7 {[%emt 0:02:42]} 30. Qf4 {[%emt 0:02:12]} Qd5 {[%emt 0:08:59]} 31. Rg3 {[%emt 0:02:45]} Kh7 {[%emt 0:05:02]} 32. Nf1 {[%emt 0:01:43]} g5 {[%emt 0:01:20]} 33. Qf6 {[%emt 0:01:10]} Qe6 {[%emt 0:05:19]} 34. Qb2 {[%emt 0:02:15]} Rad8 {[%emt 0:01:10]} 35. Ne3 {[%emt 0:04:19]} Rd3 {[%emt 0:01:34]} 36. h4 {[%emt 0:05:03]} Kg6 {[%emt 0:00:54]} 37. h5+ {[%emt 0:02:24]} Kh7 {[%emt 0:07:24]} 38. Ng4 {[%emt 0:02:28]} Bxh5 {[%emt 0:00:28]} 39. Nf6+ {[%emt 0:00:54]} Kg6 {[%emt 0:00:36]} 40. Rxd3 {[%emt 0:00:22]} exd3 {[%emt 0:00:45]} 41. Nxe8 {[%emt 0:00:58]} Qxe8 {[%emt 0:00:00]} 42. Qd2 {[%emt 0:01:26]} Qe4 {[%emt 0:00:13]} 43. Qe3 {[%emt 0:00:15]} Qxe3+ {[%emt 0:00:25]} 44. Bxe3 {[%emt 0:01:04]} Kf5 {[%emt 0:02:53]} 45. Kf2 {[%emt 0:01:51]} Be8 {[%emt 0:02:02]} 46. Bc5 {[%emt 0:00:34]} Ke4 {[%emt 0:01:01]} 47. Bf8 {[%emt 0:00:01]} h5 {[%emt 0:00:42]} 48. Bh6 {[%emt 0:01:03]} Kf4 {[%emt 0:00:09]} 49. g3+ {[%emt 0:01:24]} Kg4 {[%emt 0:00:20]} 50. Ke3 {[%emt 0:00:20]} h4 {[%emt 0:00:46]} 51. gxh4 {[%emt 0:02:16]} gxh4 {[%emt 0:00:24]} 52. Bf8 {[%emt 0:00:24]} h3 {[%emt 0:01:02]} 53. Bd6 {[%emt 0:00:18]} Bg6 {[%emt 0:00:50]} 54. a6 {[%emt 0:00:15]} Be4 {[%emt 0:00:01]} 1/2-1/2

[Event "White Rook U14 Final 2019"]
[Site "Sochi"]
[Date "2019.06.08"]
[Round "7.11"]
[White "Shirkunov, Alexandr"]
[Black "Ponomarev, Andrey A."]
[Result "1/2-1/2"]
[ECO "D85"]
[WhiteElo "1557"]
[BlackElo "1919"]
[Annotator "NA"]
[PlyCount "62"]
[EventDate "2019.06.02"]
[EventCountry "RUS"]
[SourceTitle "playchess.com"]
[Source "ChessBase"]
[SourceQuality "1"]
[TimeControl "5400+30"]

1. d4 {[%emt 0:00:00]} Nf6 {[%emt 0:00:00]} 2. c4 {[%emt 0:00:00]} g6 {[%emt 0:00:00]} 3. Nc3 {[%emt 0:00:00]} d5 {[%emt 0:00:00]} 4. cxd5 {[%emt 0:00:00]} Nxd5 {[%emt 0:00:00]} 5. e4 {[%emt 0:00:00]} Nxc3 {[%emt 0:00:00]} 6. bxc3 {[%emt 0:00:00]} Bg7 {[%emt 0:00:00]} 7. Nf3 {[%emt 0:00:00]} c5 {[%emt 0:00:00]} 8. Rb1 {[%emt 0:00:00]} O-O {[%emt 0:00:03]} 9. Be2 {[%emt 0:00:00]} cxd4 {[%emt 0:00:07]} 10. cxd4 {[%emt 0:00:00]} Qa5+ {[%emt 0:00:06]} 11. Qd2 {[%emt 0:02:51]} Qxd2+ {[%emt 0:00:09]} 12. Bxd2 {[%emt 0:00:05]} b6 {[%emt 0:00:25]} 13. O-O {[%emt 0:01:35]} e6 {[%emt 0:01:07]} 14. Rbc1 {[%emt 0:02:27]} Bb7 {[%emt 0:04:11]} 15. Bb4 {[%emt 0:03:23]} Rd8 {[%emt 0:02:36]} 16. Rc7 {[%emt 0:01:20]} Bxe4 {[%emt 0:00:17]} 17. Ng5 {[%emt 0:00:04]} Bd5 {[%emt 0:00:10]} 18. Nxf7 {[%emt 0:00:54]} Rd7 {[%emt 0:00:38]} 19. Rxd7 {[%emt 0:03:29]} Nxd7 {[%emt 0:00:00]} 20. Ng5 {[%emt 0:00:55]} Bxd4 {[%emt 0:00:00]} 21. Bg4 {[%emt 0:00:56]} Bc5 {[%emt 0:03:38]} 22. Nxe6 {[%emt 0:03:01]} Bxa2 {[%emt 0:06:53]} 23. Bc3 {[%emt 0:03:48]} Be7 {[%emt 0:09:06]} 24. Ra1 {[%emt 0:07:48]} Bc4 {[%emt 0:15:59]} 25. Nc7 {[%emt 0:00:31]} Rd8 {[%emt 0:01:06]} 26. Rxa7 {[%emt 0:02:13]} Nf6 {[%emt 0:02:20]} 27. Ne6 {[%emt 0:15:13]} Re8 {[%emt 0:03:46]} 28. Nc7 {[%emt 0:02:01]} Rd8 {[%emt 0:00:16]} 29. Ne6 {[%emt 0:00:02]} Re8 {[%emt 0:01:44]} 30. Nc7 {[%emt 0:00:03]} Rf8 {[%emt 0:01:15]} 31. Ne6 {[%emt 0:02:16]} Re8 {[%emt 0:01:28]} 1/2-1/2